[Event "*** Titled Tuesday Blitz"]
[Site "Chess.com"]
[Date "2018.12.04"]
[Round "6"]
[White "realcontender"]
[Black "PowerThinking2650"]
[Result "0-1"]
[WhiteElo "2098"]
[BlackElo "2263"]
[TimeControl "180+2"]
[EndTime "14:21:11 PST"]
[Termination "PowerThinking2650 won by resignation"]

1. d4 {[%clk 0:03:01.9]} 1... Nf6 {[%clk 0:03:00.2]} 2. c4 {[%clk 0:03:02.4]}
2... g6 {[%clk 0:02:59.9]} 3. Nc3 {[%clk 0:03:02.6]} 3... Bg7 {[%clk 0:03:01.3]}
4. e4 {[%clk 0:03:02.9]} 4... d6 {[%clk 0:03:02.7]} 5. Nf3 {[%clk 0:03:02.7]}
5... O-O {[%clk 0:03:03.8]} 6. Be2 {[%clk 0:03:02.3]} 6... e5 {[%clk 0:03:04.3]}
7. O-O {[%clk 0:02:59.5]} 7... Nc6 {[%clk 0:03:02.5]} 8. d5 {[%clk 0:02:59.8]}
8... Ne7 {[%clk 0:03:03.2]} 9. Nd2 {[%clk 0:02:59.5]} 9... Ne8 {[%clk
0:02:58.3]} 10. b4 {[%clk 0:02:59.1]} 10... f5 {[%clk 0:02:59.4]} 11. c5 {[%clk
0:02:54.5]} 11... Nf6 {[%clk 0:02:57.9]} 12. a4 {[%clk 0:02:45.3]} 12... fxe4
{[%clk 0:02:49.1]} 13. Ndxe4 {[%clk 0:02:43]} 13... Nf5 {[%clk 0:02:49.7]} 14.
cxd6 {[%clk 0:02:38.1]} 14... cxd6 {[%clk 0:02:49.7]} 15. Bg5 {[%clk 0:02:37.6]}
15... Nxe4 {[%clk 0:02:38.1]} 16. Nxe4 {[%clk 0:02:13]} 16... Qd7 {[%clk
0:02:22.3]} 17. Bb5 {[%clk 0:02:10.7]} 17... Qf7 {[%clk 0:02:18.2]} 18. Rc1
{[%clk 0:02:00.9]} 18... h6 {[%clk 0:02:08.5]} 19. Be3 {[%clk 0:01:50.6]} 19...
g5 {[%clk 0:02:03.3]} 20. Qd2 {[%clk 0:01:32.7]} 20... Qe7 {[%clk 0:02:02.6]}
21. a5 {[%clk 0:01:27.8]} 21... a6 {[%clk 0:01:53.5]} 22. Ba4 {[%clk 0:01:24.1]}
22... Nd4 {[%clk 0:01:52.8]} 23. Bxd4 {[%clk 0:01:22.5]} 23... exd4 {[%clk
0:01:54.7]} 24. Rfe1 {[%clk 0:01:18.3]} 24... Be5 {[%clk 0:01:55]} 25. Qe2
{[%clk 0:01:11.4]} 25... Qf7 {[%clk 0:01:51.1]} 26. Bb3 {[%clk 0:01:00.6]} 26...
g4 {[%clk 0:01:47.1]} 27. Ng3 {[%clk 0:00:45.5]} 27... h5 {[%clk 0:01:43.8]} 28.
Rf1 {[%clk 0:00:33.4]} 28... h4 {[%clk 0:01:39.8]} 29. Ne4 {[%clk 0:00:34.5]}
29... Qg6 {[%clk 0:00:45.2]} 30. Rc7 {[%clk 0:00:26.4]} 30... Bf5 {[%clk
0:00:42.2]} 31. Bc2 {[%clk 0:00:26]} 31... Rae8 {[%clk 0:00:41.3]} 32. Re1
{[%clk 0:00:21.3]} 32... g3 {[%clk 0:00:26]} 33. fxg3 {[%clk 0:00:17.5]} 33...
hxg3 {[%clk 0:00:24.4]} 34. Nxg3 {[%clk 0:00:16.5]} 34... Bxg3 {[%clk 0:00:21]}
35. Re7 {[%clk 0:00:05.9]} 35... Rxe7 {[%clk 0:00:20.3]} 0-1

[Event "*** Titled Tuesday Blitz"]
[Site "Chess.com"]
[Date "2018.12.04"]
[Round "6"]
[White "Panchenko_Dmitry"]
[Black "jmduque"]
[Result "1-0"]
[WhiteElo "2557"]
[BlackElo "2402"]
[TimeControl "180+2"]
[EndTime "14:21:17 PST"]
[Termination "Panchenko_Dmitry won by resignation"]

1. e4 {[%clk 0:03:01.9]} 1... e5 {[%clk 0:03:00.6]} 2. Nf3 {[%clk 0:03:02.1]}
2... Nc6 {[%clk 0:03:00.7]} 3. Bc4 {[%clk 0:03:02.7]} 3... Nf6 {[%clk
0:03:01.5]} 4. d3 {[%clk 0:03:03.5]} 4... h6 {[%clk 0:03:02.3]} 5. c3 {[%clk
0:03:04.2]} 5... d6 {[%clk 0:03:03.1]} 6. Bb3 {[%clk 0:03:04.6]} 6... g5 {[%clk
0:03:02.2]} 7. h3 {[%clk 0:02:55.4]} 7... Bg7 {[%clk 0:03:02]} 8. Nbd2 {[%clk
0:02:55.6]} 8... Qe7 {[%clk 0:03:03]} 9. Nf1 {[%clk 0:02:56.2]} 9... Nh5 {[%clk
0:02:57.8]} 10. g3 {[%clk 0:02:40.5]} 10... f5 {[%clk 0:02:56.3]} 11. exf5
{[%clk 0:02:39.5]} 11... Bxf5 {[%clk 0:02:51.8]} 12. Ne3 {[%clk 0:02:29.4]}
12... Bg6 {[%clk 0:02:46.3]} 13. Nd5 {[%clk 0:02:25.2]} 13... Qd7 {[%clk
0:02:42.7]} 14. g4 {[%clk 0:02:24.1]} 14... Nf6 {[%clk 0:02:41.6]} 15. Nxf6+
{[%clk 0:02:17.2]} 15... Bxf6 {[%clk 0:02:42.4]} 16. Bd5 {[%clk 0:02:17.6]}
16... Bf7 {[%clk 0:02:36.9]} 17. Qb3 {[%clk 0:02:14]} 17... Bxd5 {[%clk
0:02:31.8]} 18. Qxd5 {[%clk 0:02:14.3]} 18... O-O-O {[%clk 0:02:25.7]} 19. Be3
{[%clk 0:02:14.5]} 19... Ne7 {[%clk 0:02:13.7]} 20. Qa5 {[%clk 0:02:14.4]} 20...
Qc6 {[%clk 0:02:14]} 21. Ke2 {[%clk 0:02:07]} 21... a6 {[%clk 0:02:15.2]} 22.
Nd2 {[%clk 0:01:58.7]} 22... Ng6 {[%clk 0:02:08.4]} 23. Rae1 {[%clk 0:01:50.4]}
23... d5 {[%clk 0:02:03.7]} 24. Kd1 {[%clk 0:01:36.9]} 24... Kb8 {[%clk
0:01:56.1]} 25. f3 {[%clk 0:01:33.6]} 25... d4 {[%clk 0:01:51.8]} 26. cxd4
{[%clk 0:01:23.6]} 26... exd4 {[%clk 0:01:53]} 27. Bf2 {[%clk 0:01:24.2]} 27...
Nf4 {[%clk 0:01:54.4]} 28. Qa3 {[%clk 0:01:19.8]} 28... Qb5 {[%clk 0:01:41.6]}
29. Nc4 {[%clk 0:01:18.4]} 29... Rhe8 {[%clk 0:01:41.7]} 30. Re4 {[%clk
0:01:15]} 30... Rxe4 {[%clk 0:01:28.4]} 31. fxe4 {[%clk 0:01:15.7]} 31... Re8
{[%clk 0:01:29.3]} 32. Kc2 {[%clk 0:00:59.7]} 32... Be7 {[%clk 0:01:13.2]} 33.
Qb3 {[%clk 0:00:56.7]} 33... Qc5 {[%clk 0:01:13.7]} 34. Kb1 {[%clk 0:00:55.5]}
34... Ne6 {[%clk 0:01:12.6]} 35. Rc1 {[%clk 0:00:54.9]} 35... Rf8 {[%clk
0:01:10.7]} 36. Bg3 {[%clk 0:00:53]} 36... Qb5 {[%clk 0:01:03.1]} 37. Qxb5
{[%clk 0:00:36.1]} 37... axb5 {[%clk 0:01:05]} 38. Ne5 {[%clk 0:00:35.3]} 38...
Bd6 {[%clk 0:00:59.8]} 39. Nd7+ {[%clk 0:00:35.8]} 39... Kc8 {[%clk 0:00:59]}
40. Nxf8 {[%clk 0:00:36.1]} 40... Bxf8 {[%clk 0:00:59.9]} 41. Rf1 {[%clk
0:00:35.9]} 41... Bc5 {[%clk 0:00:54.5]} 42. Rf6 {[%clk 0:00:35.3]} 42... Kd7
{[%clk 0:00:53]} 43. Rxh6 {[%clk 0:00:36.1]} 43... Be7 {[%clk 0:00:54.1]} 44.
Rh7 {[%clk 0:00:36.4]} 44... c5 {[%clk 0:00:54.9]} 45. Be5 {[%clk 0:00:34.2]}
45... c4 {[%clk 0:00:56.8]} 46. Bf6 {[%clk 0:00:33.2]} 46... cxd3 {[%clk
0:00:57.4]} 47. Rxe7+ {[%clk 0:00:33.5]} 47... Kd6 {[%clk 0:00:57.4]} 48. Rxe6+
{[%clk 0:00:34.3]} 48... Kxe6 {[%clk 0:00:58.2]} 49. Bxd4 {[%clk 0:00:35.8]}
49... d2 {[%clk 0:00:59.2]} 50. Kc2 {[%clk 0:00:36.1]} 50... d1=Q+ {[%clk
0:00:56.3]} 51. Kxd1 {[%clk 0:00:36.9]} 1-0

[Event "*** Titled Tuesday Blitz"]
[Site "Chess.com"]
[Date "2018.12.04"]
[Round "6"]
[White "TregubovP"]
[Black "Orest_Vovk"]
[Result "0-1"]
[WhiteElo "2553"]
[BlackElo "2423"]
[TimeControl "180+2"]
[EndTime "14:21:18 PST"]
[Termination "Orest_Vovk won by resignation"]

1. d4 {[%clk 0:03:01.9]} 1... h6 {[%clk 0:03:00.4]} 2. e4 {[%clk 0:03:02.3]}
2... g5 {[%clk 0:03:01.5]} 3. Bd3 {[%clk 0:02:59.7]} 3... Bg7 {[%clk 0:03:02.7]}
4. Ne2 {[%clk 0:03:00.7]} 4... c5 {[%clk 0:03:02]} 5. d5 {[%clk 0:02:52.9]} 5...
d6 {[%clk 0:03:00.3]} 6. c4 {[%clk 0:02:53.7]} 6... Nd7 {[%clk 0:02:59.1]} 7.
Nbc3 {[%clk 0:02:54.3]} 7... Ne5 {[%clk 0:03:00.1]} 8. Ng3 {[%clk 0:02:55.2]}
8... Nxd3+ {[%clk 0:02:59.9]} 9. Qxd3 {[%clk 0:02:55.9]} 9... Nf6 {[%clk
0:02:53.4]} 10. O-O {[%clk 0:02:55.1]} 10... Ng4 {[%clk 0:02:54.1]} 11. Qe2
{[%clk 0:02:49.8]} 11... Bxc3 {[%clk 0:02:50.8]} 12. bxc3 {[%clk 0:02:50.2]}
12... Qa5 {[%clk 0:02:45.7]} 13. Nf5 {[%clk 0:02:33.5]} 13... Bxf5 {[%clk
0:02:40.8]} 14. exf5 {[%clk 0:02:34.3]} 14... Ne5 {[%clk 0:02:40.3]} 15. f4
{[%clk 0:02:35.5]} 15... gxf4 {[%clk 0:02:40.3]} 16. Bxf4 {[%clk 0:02:36.5]}
16... Qxc3 {[%clk 0:02:34.2]} 17. Rac1 {[%clk 0:02:28.5]} 17... Qd3 {[%clk
0:02:12.2]} 18. Qh5 {[%clk 0:02:21.8]} 18... Rg8 {[%clk 0:02:02.6]} 19. Bxe5
{[%clk 0:02:03]} 19... Qe3+ {[%clk 0:01:39]} 20. Kh1 {[%clk 0:02:03.4]} 20...
Qxe5 {[%clk 0:01:39.5]} 21. Rce1 {[%clk 0:01:56.5]} 21... Qf6 {[%clk 0:01:33.5]}
22. Re6 {[%clk 0:01:51.1]} 22... Qg5 {[%clk 0:01:27.9]} 23. Qxg5 {[%clk
0:01:24.7]} 23... hxg5 {[%clk 0:01:27.6]} 24. Rh6 {[%clk 0:01:21.3]} 24... f6
{[%clk 0:01:19]} 25. Rh7 {[%clk 0:01:20]} 25... Kd7 {[%clk 0:01:18.1]} 26. Re1
{[%clk 0:01:21.1]} 26... Rge8 {[%clk 0:01:17.6]} 27. Re6 {[%clk 0:01:17]} 27...
Kd8 {[%clk 0:01:17.3]} 28. g4 {[%clk 0:01:13.3]} 28... Rb8 {[%clk 0:01:13]} 29.
h4 {[%clk 0:01:13.6]} 29... gxh4 {[%clk 0:01:14.3]} 30. Kg2 {[%clk 0:01:08]}
30... b5 {[%clk 0:01:14.8]} 31. g5 {[%clk 0:01:08.4]} 31... fxg5 {[%clk
0:01:07.8]} 32. f6 {[%clk 0:01:09.3]} 32... bxc4 {[%clk 0:01:02.7]} 33. Rexe7
{[%clk 0:00:41.7]} 33... Rb2+ {[%clk 0:01:02.7]} 34. Kh3 {[%clk 0:00:40.5]}
34... Rxe7 {[%clk 0:01:03.4]} 35. Rxe7 {[%clk 0:00:41.5]} 35... Rf2 {[%clk
0:00:51.5]} 36. Re6 {[%clk 0:00:41.8]} 36... Kc7 {[%clk 0:00:32.2]} 37. Kg4
{[%clk 0:00:41.8]} 37... c3 {[%clk 0:00:26.7]} 38. Kxg5 {[%clk 0:00:41.3]} 38...
h3 {[%clk 0:00:27.5]} 39. Re1 {[%clk 0:00:31.3]} 39... h2 {[%clk 0:00:25.7]} 40.
Kg6 {[%clk 0:00:31.7]} 40... Rg2+ {[%clk 0:00:24.6]} 41. Kf5 {[%clk 0:00:30.9]}
41... Rg1 {[%clk 0:00:20.6]} 0-1

[Event "*** Titled Tuesday Blitz"]
[Site "Chess.com"]
[Date "2018.12.04"]
[Round "6"]
[White "theblitzchamp"]
[Black "c63_amg"]
[Result "0-1"]
[WhiteElo "2696"]
[BlackElo "2632"]
[TimeControl "180+2"]
[EndTime "14:21:20 PST"]
[Termination "c63_amg won by checkmate"]

1. e4 {[%clk 0:03:01.9]} 1... c5 {[%clk 0:02:58.4]} 2. Nf3 {[%clk 0:03:03]} 2...
d6 {[%clk 0:02:58.7]} 3. d4 {[%clk 0:03:04.2]} 3... cxd4 {[%clk 0:03:00.1]} 4.
Nxd4 {[%clk 0:03:06.1]} 4... Nf6 {[%clk 0:03:01.3]} 5. Nc3 {[%clk 0:03:07.5]}
5... a6 {[%clk 0:03:02.8]} 6. Bc4 {[%clk 0:03:08.6]} 6... Nbd7 {[%clk
0:02:55.3]} 7. f4 {[%clk 0:03:02.3]} 7... b5 {[%clk 0:02:55]} 8. Bb3 {[%clk
0:03:02.7]} 8... Bb7 {[%clk 0:02:53.6]} 9. Qe2 {[%clk 0:02:53]} 9... e5 {[%clk
0:02:18.9]} 10. Nf5 {[%clk 0:02:50.8]} 10... g6 {[%clk 0:02:10.7]} 11. Ng3
{[%clk 0:02:47.5]} 11... Bg7 {[%clk 0:01:37.3]} 12. f5 {[%clk 0:02:48.3]} 12...
b4 {[%clk 0:01:06.1]} 13. Nd1 {[%clk 0:02:35.4]} 13... Nc5 {[%clk 0:00:56.4]}
14. fxg6 {[%clk 0:02:30.7]} 14... hxg6 {[%clk 0:00:54.9]} 15. Bg5 {[%clk
0:02:26.7]} 15... Nxb3 {[%clk 0:00:48.3]} 16. axb3 {[%clk 0:02:27.1]} 16... Qc7
{[%clk 0:00:43.2]} 17. Nf2 {[%clk 0:01:48.3]} 17... O-O {[%clk 0:00:29.8]} 18.
O-O {[%clk 0:01:47.4]} 18... d5 {[%clk 0:00:23.5]} 19. Bxf6 {[%clk 0:01:12.4]}
19... Bxf6 {[%clk 0:00:23.9]} 20. Ng4 {[%clk 0:01:14]} 20... Qb6+ {[%clk
0:00:21.5]} 21. Kh1 {[%clk 0:01:13.7]} 21... Bg7 {[%clk 0:00:22.7]} 22. Rad1
{[%clk 0:00:51.5]} 22... dxe4 {[%clk 0:00:22.7]} 23. Nxe4 {[%clk 0:00:31]} 23...
f5 {[%clk 0:00:07.1]} 24. Qc4+ {[%clk 0:00:21.6]} 24... Kh8 {[%clk 0:00:07.2]}
25. Rd6 {[%clk 0:00:22.6]} 25... Qb5 {[%clk 0:00:06.6]} 26. Ng5 {[%clk
0:00:12.6]} 26... Qxc4 {[%clk 0:00:06.5]} 27. bxc4 {[%clk 0:00:13.6]} 27... fxg4
{[%clk 0:00:07.8]} 28. Re1 {[%clk 0:00:15.1]} 28... Rf5 {[%clk 0:00:06.8]} 29.
Rxg6 {[%clk 0:00:15.9]} 29... Raf8 {[%clk 0:00:07.2]} 30. h4 {[%clk 0:00:15.1]}
30... Rf2 {[%clk 0:00:07.8]} 31. Rg1 {[%clk 0:00:13.9]} 31... R8f6 {[%clk
0:00:08.6]} 32. Rxf6 {[%clk 0:00:14.7]} 32... Bxf6 {[%clk 0:00:09.5]} 33. Nf7+
{[%clk 0:00:16.1]} 33... Kg7 {[%clk 0:00:10.3]} 34. Nd6 {[%clk 0:00:18]} 34...
Bc6 {[%clk 0:00:11.7]} 35. h5 {[%clk 0:00:19.1]} 35... Bg5 {[%clk 0:00:12.3]}
36. b3 {[%clk 0:00:18.6]} 36... Be3 {[%clk 0:00:13.7]} 37. c3 {[%clk 0:00:19.6]}
37... bxc3 {[%clk 0:00:14.3]} 38. b4 {[%clk 0:00:20.8]} 38... c2 {[%clk
0:00:15.4]} 39. b5 {[%clk 0:00:22.5]} 39... Rxg2 {[%clk 0:00:16.9]} 40. bxc6
{[%clk 0:00:22.8]} 40... Rxg1+ {[%clk 0:00:17.7]} 41. Kh2 {[%clk 0:00:24.5]}
41... c1=Q {[%clk 0:00:19.4]} 42. c7 {[%clk 0:00:25.6]} 42... Qd2# {[%clk
0:00:20.8]} 0-1

[Event "*** Titled Tuesday Blitz"]
[Site "Chess.com"]
[Date "2018.12.04"]
[Round "6"]
[White "gkchesstiger"]
[Black "GMKrikor"]
[Result "1-0"]
[WhiteElo "2800"]
[BlackElo "2667"]
[TimeControl "180+2"]
[EndTime "14:21:23 PST"]
[Termination "gkchesstiger won by resignation"]

1. e4 {[%clk 0:03:01.9]} 1... c5 {[%clk 0:02:48.9]} 2. Nf3 {[%clk 0:03:02.5]}
2... d6 {[%clk 0:02:47.8]} 3. d4 {[%clk 0:03:02]} 3... cxd4 {[%clk 0:02:49.7]}
4. Nxd4 {[%clk 0:03:02.8]} 4... Nf6 {[%clk 0:02:50.9]} 5. Nc3 {[%clk 0:03:03.4]}
5... a6 {[%clk 0:02:52.1]} 6. a4 {[%clk 0:03:04.1]} 6... e5 {[%clk 0:02:48.6]}
7. Nf3 {[%clk 0:03:04.9]} 7... Be7 {[%clk 0:02:38.5]} 8. Bc4 {[%clk 0:03:05.4]}
8... O-O {[%clk 0:02:39.8]} 9. O-O {[%clk 0:03:05.2]} 9... Be6 {[%clk
0:02:39.5]} 10. Qe2 {[%clk 0:03:05.6]} 10... Qc7 {[%clk 0:02:34.4]} 11. Bb3
{[%clk 0:03:04.2]} 11... Nc6 {[%clk 0:02:22.2]} 12. Rd1 {[%clk 0:02:56.2]} 12...
Na5 {[%clk 0:02:17]} 13. Nd5 {[%clk 0:02:51.4]} 13... Bxd5 {[%clk 0:02:10.1]}
14. Bxd5 {[%clk 0:02:51.5]} 14... Nxd5 {[%clk 0:02:07.6]} 15. Rxd5 {[%clk
0:02:51.5]} 15... Rac8 {[%clk 0:01:59.5]} 16. b3 {[%clk 0:02:11.1]} 16... Nc6
{[%clk 0:01:54.3]} 17. c4 {[%clk 0:01:58.3]} 17... Rfd8 {[%clk 0:01:18.2]} 18.
Be3 {[%clk 0:01:50.3]} 18... Nb4 {[%clk 0:01:10.5]} 19. Rdd1 {[%clk 0:01:45.2]}
19... Qc6 {[%clk 0:01:05.1]} 20. Bd2 {[%clk 0:01:32]} 20... Qc5 {[%clk
0:01:06.4]} 21. a5 {[%clk 0:01:20.6]} 21... Bf6 {[%clk 0:00:34.8]} 22. Be3
{[%clk 0:01:18.8]} 22... Qc7 {[%clk 0:00:09.9]} 23. Bb6 {[%clk 0:01:19.7]} 23...
Qe7 {[%clk 0:00:11.3]} 24. Bxd8 {[%clk 0:01:20.1]} 24... Rxd8 {[%clk 0:00:13.2]}
25. h3 {[%clk 0:01:16.1]} 25... g6 {[%clk 0:00:14.3]} 26. Qd2 {[%clk 0:00:57.1]}
26... Nc6 {[%clk 0:00:15.4]} 27. Qe3 {[%clk 0:00:57.8]} 27... Re8 {[%clk
0:00:13.9]} 28. Rd5 {[%clk 0:00:54]} 28... Nd4 {[%clk 0:00:11.2]} 29. Rd1 {[%clk
0:00:53.7]} 29... Kg7 {[%clk 0:00:08.8]} 30. Nxd4 {[%clk 0:00:54.1]} 30... exd4
{[%clk 0:00:10.4]} 31. R1xd4 {[%clk 0:00:55.3]} 31... Bxd4 {[%clk 0:00:08.6]}
32. Qxd4+ {[%clk 0:00:56.3]} 32... Kg8 {[%clk 0:00:10.2]} 33. Rxd6 {[%clk
0:00:52.8]} 33... Qg5 {[%clk 0:00:07.4]} 34. Qd2 {[%clk 0:00:39.1]} 34... Qe5
{[%clk 0:00:03.5]} 35. f3 {[%clk 0:00:39]} 35... h5 {[%clk 0:00:03.8]} 36. h4
{[%clk 0:00:38.1]} 36... Kh7 {[%clk 0:00:04.2]} 37. Rd7 {[%clk 0:00:37.1]} 37...
Kg7 {[%clk 0:00:03.1]} 38. Qd4 {[%clk 0:00:37.7]} 38... Qxd4+ {[%clk 0:00:04.3]}
39. Rxd4 {[%clk 0:00:38.2]} 39... Re5 {[%clk 0:00:04]} 40. b4 {[%clk 0:00:39.1]}
40... Re7 {[%clk 0:00:05.7]} 41. Kf2 {[%clk 0:00:39.8]} 41... Kf6 {[%clk
0:00:06.7]} 42. Ke3 {[%clk 0:00:41]} 1-0

[Event "*** Titled Tuesday Blitz"]
[Site "Chess.com"]
[Date "2018.12.04"]
[Round "6"]
[White "Evgeny81"]
[Black "grzechu96"]
[Result "0-1"]
[WhiteElo "2618"]
[BlackElo "2565"]
[TimeControl "180+2"]
[EndTime "14:21:23 PST"]
[Termination "grzechu96 won by resignation"]

1. Nf3 {[%clk 0:03:01.9]} 1... c5 {[%clk 0:02:55.6]} 2. c4 {[%clk 0:03:02.6]}
2... Nc6 {[%clk 0:02:55.7]} 3. g3 {[%clk 0:03:03.2]} 3... g6 {[%clk 0:02:57]} 4.
Bg2 {[%clk 0:03:04.3]} 4... Bg7 {[%clk 0:02:58.5]} 5. O-O {[%clk 0:03:06]} 5...
e6 {[%clk 0:02:59.7]} 6. Nc3 {[%clk 0:03:03.2]} 6... Nge7 {[%clk 0:03:00.9]} 7.
d3 {[%clk 0:03:02.9]} 7... O-O {[%clk 0:03:00.1]} 8. Rb1 {[%clk 0:03:02.8]} 8...
d5 {[%clk 0:03:00.3]} 9. Bd2 {[%clk 0:03:00.7]} 9... b6 {[%clk 0:02:57.9]} 10.
a3 {[%clk 0:03:00.9]} 10... d4 {[%clk 0:02:57.1]} 11. Na2 {[%clk 0:02:56.8]}
11... a5 {[%clk 0:02:58.3]} 12. b3 {[%clk 0:02:55]} 12... e5 {[%clk 0:02:53.2]}
13. Qc2 {[%clk 0:02:55.1]} 13... f5 {[%clk 0:02:39.8]} 14. b4 {[%clk 0:02:54.6]}
14... axb4 {[%clk 0:02:07.2]} 15. axb4 {[%clk 0:02:55.1]} 15... Ra7 {[%clk
0:01:49.9]} 16. bxc5 {[%clk 0:02:48.4]} 16... bxc5 {[%clk 0:01:51.8]} 17. Rb5
{[%clk 0:02:49]} 17... Qd6 {[%clk 0:01:52.5]} 18. Rfb1 {[%clk 0:02:39.5]} 18...
h6 {[%clk 0:01:42]} 19. Nc1 {[%clk 0:02:39.4]} 19... e4 {[%clk 0:01:02]} 20. Bf4
{[%clk 0:01:53.8]} 20... Qe6 {[%clk 0:00:51.9]} 21. Rxc5 {[%clk 0:01:54.1]}
21... exf3 {[%clk 0:00:50.4]} 22. Bxf3 {[%clk 0:01:55.6]} 22... Ne5 {[%clk
0:00:33.9]} 23. Bg2 {[%clk 0:01:27.4]} 23... Bd7 {[%clk 0:00:28]} 24. Nb3 {[%clk
0:01:22.1]} 24... Nf7 {[%clk 0:00:24.9]} 25. Rc7 {[%clk 0:01:02.1]} 25... Rxc7
{[%clk 0:00:25]} 26. Bxc7 {[%clk 0:01:03.8]} 26... Bc6 {[%clk 0:00:25.1]} 27.
Nc5 {[%clk 0:00:53.7]} 27... Qc8 {[%clk 0:00:21]} 28. Bxc6 {[%clk 0:00:45.7]}
28... Qxc7 {[%clk 0:00:21.6]} 29. Ne6 {[%clk 0:00:35.8]} 29... Qxc6 {[%clk
0:00:22.9]} 30. Nxf8 {[%clk 0:00:36.8]} 30... Bxf8 {[%clk 0:00:24.2]} 31. Rb8
{[%clk 0:00:36]} 31... Qd6 {[%clk 0:00:18]} 32. Qb3 {[%clk 0:00:35.4]} 32... Nc6
{[%clk 0:00:18.9]} 33. Ra8 {[%clk 0:00:29.1]} 33... Kg7 {[%clk 0:00:19.2]} 34.
Qb7 {[%clk 0:00:28.8]} 34... Be7 {[%clk 0:00:19.1]} 35. Ra6 {[%clk 0:00:27.7]}
35... Nfd8 {[%clk 0:00:20.3]} 36. Qc8 {[%clk 0:00:23.7]} 36... Kf7 {[%clk
0:00:17.7]} 37. Rb6 {[%clk 0:00:19.4]} 37... Qe6 {[%clk 0:00:17.1]} 38. Qb7
{[%clk 0:00:18.4]} 38... Nxb7 {[%clk 0:00:17.5]} 0-1

[Event "*** Titled Tuesday Blitz"]
[Site "Chess.com"]
[Date "2018.12.04"]
[Round "6"]
[White "Yeytruyol"]
[Black "731291"]
[Result "0-1"]
[WhiteElo "2473"]
[BlackElo "2596"]
[TimeControl "180+2"]
[EndTime "14:21:24 PST"]
[Termination "731291 won by resignation"]

1. d4 {[%clk 0:03:01.9]} 1... Nf6 {[%clk 0:03:00.9]} 2. Nf3 {[%clk 0:03:03.8]}
2... g6 {[%clk 0:03:01.2]} 3. c4 {[%clk 0:03:03.3]} 3... Bg7 {[%clk 0:03:02.4]}
4. Nc3 {[%clk 0:03:03.5]} 4... O-O {[%clk 0:03:01.5]} 5. e4 {[%clk 0:03:03.8]}
5... d6 {[%clk 0:03:03.2]} 6. Be2 {[%clk 0:03:03.3]} 6... Nbd7 {[%clk
0:03:04.1]} 7. h3 {[%clk 0:03:00.9]} 7... e5 {[%clk 0:03:04.4]} 8. Be3 {[%clk
0:03:00]} 8... exd4 {[%clk 0:03:03.7]} 9. Nxd4 {[%clk 0:03:01.6]} 9... Re8
{[%clk 0:03:03.3]} 10. Qc2 {[%clk 0:02:58.4]} 10... Nc5 {[%clk 0:03:03.9]} 11.
f3 {[%clk 0:02:54.2]} 11... Nh5 {[%clk 0:02:54.5]} 12. O-O-O {[%clk 0:02:51.8]}
12... Ng3 {[%clk 0:02:37.5]} 13. Rhe1 {[%clk 0:02:52.2]} 13... a5 {[%clk
0:02:32.4]} 14. Bd3 {[%clk 0:02:49.4]} 14... a4 {[%clk 0:02:23.3]} 15. Kb1
{[%clk 0:02:35]} 15... Be6 {[%clk 0:01:57.4]} 16. Nxe6 {[%clk 0:02:07.7]} 16...
Nxe6 {[%clk 0:01:57.3]} 17. Ne2 {[%clk 0:02:00.5]} 17... Nxe2 {[%clk 0:01:57.6]}
18. Rxe2 {[%clk 0:01:57.2]} 18... a3 {[%clk 0:01:58]} 19. c5 {[%clk 0:01:50.5]}
19... axb2 {[%clk 0:01:56.1]} 20. Bc4 {[%clk 0:01:49.1]} 20... Qe7 {[%clk
0:01:38.6]} 21. cxd6 {[%clk 0:01:46.5]} 21... cxd6 {[%clk 0:01:40.5]} 22. Qb3
{[%clk 0:01:45]} 22... Rec8 {[%clk 0:01:30.3]} 23. Bxe6 {[%clk 0:01:42.8]} 23...
Qxe6 {[%clk 0:01:29.5]} 24. Qxe6 {[%clk 0:01:42.9]} 24... fxe6 {[%clk
0:01:31.4]} 25. Rc2 {[%clk 0:01:13.1]} 25... Rxc2 {[%clk 0:01:28.9]} 26. Kxc2
{[%clk 0:01:15]} 26... Rxa2 {[%clk 0:01:30.4]} 27. Rxd6 {[%clk 0:01:14.9]} 27...
Ra1 {[%clk 0:01:14.8]} 28. Rd8+ {[%clk 0:01:13.1]} 28... Kf7 {[%clk 0:01:15.9]}
29. Rd7+ {[%clk 0:01:10.4]} 29... Ke8 {[%clk 0:01:15]} 30. Rxb7 {[%clk
0:01:10.2]} 30... Re1 {[%clk 0:01:02]} 31. Bg5 {[%clk 0:00:52.7]} 31... Bd4
{[%clk 0:00:54.8]} 32. Bd2 {[%clk 0:00:37.4]} 32... Rg1 {[%clk 0:00:45.9]} 33.
g4 {[%clk 0:00:34.5]} 33... e5 {[%clk 0:00:40.8]} 34. Rb8+ {[%clk 0:00:29.4]}
34... Kd7 {[%clk 0:00:39.4]} 35. h4 {[%clk 0:00:29.5]} 35... Rf1 {[%clk
0:00:39]} 36. Rb3 {[%clk 0:00:23.2]} 36... h5 {[%clk 0:00:37]} 37. gxh5 {[%clk
0:00:21.9]} 37... gxh5 {[%clk 0:00:38.9]} 38. Rb7+ {[%clk 0:00:20.6]} 38... Kc6
{[%clk 0:00:39.7]} 39. Rb3 {[%clk 0:00:22.5]} 39... Kc5 {[%clk 0:00:41.1]} 40.
Rb8 {[%clk 0:00:22.8]} 40... Rxf3 {[%clk 0:00:39.6]} 41. Rc8+ {[%clk 0:00:23.8]}
41... Kd6 {[%clk 0:00:38.4]} 42. Rb8 {[%clk 0:00:24.2]} 42... Rf1 {[%clk
0:00:37.4]} 43. Rb7 {[%clk 0:00:23.8]} 43... Rh1 {[%clk 0:00:38.4]} 44. Rb5
{[%clk 0:00:22]} 44... Rxh4 {[%clk 0:00:38.4]} 45. Rb6+ {[%clk 0:00:23]} 45...
Bxb6 {[%clk 0:00:38.4]} 0-1